bitfinex/quotes_SOLUSD_20250313
["timestamp","ask_amount","ask_price","bid_price","bid_amount"]
[1741880137653,18.64964886,124.32,124.27,22.56683416]
[1741880137854,18.64964886,124.32,124.28,22.56683416]
[1741880138029,22.56683416,124.31,124.25,14.02726157]
[1741880138347,22.56683416,124.29,124.25,13.8851]
[1741880138551,18.64964886,124.29,124.25,13.8851]
[1741880138758,41.21648302,124.29,124.25,8.0482]
[1741880138924,22.56683416,124.29,124.25,8.0482]
[1741880139129,18.64964886,124.31,124.26,22.56683416]
[1741880139430,18.64964886,124.34,124.29,22.56683416]
[1741880139642,22.56683416,124.35,124.29,22.56683416]
[1741880139848,22.56683416,124.35,124.3,22.56683416]
[1741880139849,18.64964886,124.35,124.3,22.56683416]
[1741880140349,82.8,124.37,124.31,22.56683416]
[1741880140350,105.36683416,124.37,124.31,22.56683416]
[1741880140553,22.56683416,124.37,124.33,8.0431]
[1741880141047,1.6401,124.38,124.33,8.0431]
[1741880141253,82.8,124.41,124.34,22.56683416]
[1741880141428,22.56683416,124.38,124.33,8.0431]
[1741880143045,41.21648302,124.39,124.33,30.60993416]
[1741880143235,18.64964886,124.39,124.34,22.56683416]
[1741880143641,41.21648302,124.39,124.33,28.1508]
[1741880143844,41.21648302,124.39,124.34,22.56683416]
[1741880144352,41.21648302,124.39,124.33,50.71763416]
[1741880145137,41.21648302,124.39,124.33,8.0431]
[1741880145138,22.56683416,124.37,124.33,8.0431]
[1741880145950,18.64964886,124.37,124.33,30.60993416]
[1741880146143,18.64964886,124.41,124.35,22.56683416]
[1741880146338,41.21648302,124.41,124.35,22.56683416]
[1741880146658,22.56683416,124.39,124.34,22.56683416]
[1741880146966,22.56683416,124.39,124.34,8.0424]
[1741880147156,22.56683416,124.4,124.35,22.8511573]
[1741880147358,1.5691,124.42,124.36,22.56683416]
[1741880147359,22.56683416,124.41,124.36,22.56683416]
[1741880148345,20.21874886,124.42,124.35,0.28432314]
[1741880148346,22.56683416,124.4,124.35,0.28432314]
[1741880148547,22.56683416,124.4,124.35,22.8511573]
[1741880148862,28.25604886,124.42,124.33,30.60993416]
[1741880148863,22.56683416,124.38,124.33,30.60993416]
[1741880149238,22.56683416,124.37,124.36,0.03]
[1741880149653,22.56683416,124.39,124.36,0.03]
[1741880149854,18.64964886,124.39,124.36,0.03]
[1741880150041,22.56683416,124.4,124.36,0.03]
[1741880150242,22.56683416,124.41,124.36,0.03]
[1741880150462,22.56683416,124.41,124.36,22.59683416]
[1741880150759,22.56683416,124.41,124.36,0.03]
[1741880150964,22.56683416,124.41,124.36,8.0711]
[1741880151162,20.21874886,124.42,124.37,22.56683416]
[1741880151465,22.56683416,124.41,124.36,30.63793416]
[1741880151649,22.56683416,124.41,124.36,8.0711]
[1741880151853,22.56683416,124.41,124.36,30.63793416]
[1741880152241,22.56683416,124.41,124.36,8.0711]
[1741880152442,22.56683416,124.4,124.36,8.0711]
[1741880152761,22.56683416,124.39,124.36,0.03]
[1741880152960,22.56683416,124.38,124.36,0.03]
[1741880153647,41.21648302,124.37,124.36,0.03]
[1741880153961,50.04080616,124.37,124.36,0.03]
[1741880155366,57.79698302,124.37,124.36,0.03]
[1741880156154,57.79698302,124.37,124.3,30.61143416]
[1741880156358,22.56683416,124.35,124.3,8.0446]
[1741880156751,22.56683416,124.34,124.3,8.0446]
[1741880156951,18.64964886,124.34,124.3,8.0446]
[1741880157352,41.21648302,124.34,124.3,8.0446]
[1741880157755,18.64964886,124.34,124.3,8.0446]
[1741880158965,18.64964886,124.35,124.3,50.72403416]
[1741880159142,41.21648302,124.35,124.3,50.72403416]
[1741880159469,22.56683416,124.34,124.29,36.78463416]
[1741880159656,41.21648302,124.35,124.29,36.78463416]
[1741880159857,18.64964886,124.36,124.3,22.56683416]
[1741880160056,41.21648302,124.36,124.3,22.56683416]
[1741880160254,105.36683416,124.38,124.32,22.56683416]
[1741880160447,22.56683416,124.38,124.32,22.56683416]
[1741880160646,22.56683416,124.38,124.33,22.56683416]
[1741880161352,22.56683416,124.36,124.32,8.0437]
[1741880161859,22.56683416,124.38,124.32,30.61053416]
[1741880162270,22.56683416,124.37,124.32,30.61053416]
[1741880162611,8.0395,124.39,124.32,30.61053416]
[1741880162759,22.56683416,124.37,124.32,30.61053416]
[1741880163368,42.56683416,124.33,124.26,6.5116]
[1741880163671,42.56683416,124.33,124.2,23.06683416]
[1741880163672,18.64964886,124.21,124.12,0.03]
[1741880163856,22.56683416,124.19,124.13,22.56683416]
[1741880164053,1.5872,124.23,124.12,0.03]
[1741880164262,22.56683416,124.18,124.12,0.03]
[1741880164443,22.56683416,124.18,124.12,30.65353416]
[1741880164647,22.56683416,124.2,124.14,22.56683416]
[1741880164871,82.8,124.24,124.17,95.5732]
[1741880165062,18.64964886,124.26,124.2,22.56683416]
[1741880165257,10.88435836,124.31,124.18,219.44216157]
[1741880165457,10.88435836,124.31,124.29,22.56683416]
[1741880165772,22.56683416,124.35,124.3,22.56683416]
[1741880165972,22.56683416,124.34,124.26,42.8511573]
[1741880166270,20.0,124.24,124.17,306.3531]
[1741880166473,20.0,124.24,124.22,312.0]
[1741880167353,18.64964886,124.27,124.22,312.0]
[1741880167590,20.0,124.26,124.22,36.47381099]
[1741880167792,36.47381099,124.28,124.23,36.47381099]
[1741880168070,36.47381099,124.29,124.23,36.75813413]
[1741880168273,36.47381099,124.27,124.22,36.47381099]
[1741880168667,36.47381099,124.25,124.22,312.0]
[1741880168862,20.0,124.26,124.22,348.47381099]
[1741880169479,20.0,124.26,124.23,36.47381099]
[1741880169772,84.4363,124.3,124.25,36.47381099]
[1741880170076,36.47381099,124.28,124.23,36.47381099]
[1741880170650,36.47381099,124.27,124.23,0.28432314]
[1741880170868,56.47381099,124.28,124.23,0.28432314]
[1741880171072,56.47381099,124.28,124.22,8.0497]
[1741880171275,36.47381099,124.26,124.22,8.0497]
[1741880171472,20.0,124.28,124.22,44.52351099]
[1741880171665,56.47381099,124.28,124.23,36.78813413]
[1741880171859,36.47381099,124.3,124.26,0.28432314]
[1741880172175,36.47381099,124.29,124.24,45.45381099]
[1741880172355,55.12345985,124.32,124.24,8.98]
[1741880172356,36.47381099,124.28,124.24,8.98]
[1741880172749,36.47381099,124.25,124.24,8.98]
[1741880172953,36.47381099,124.26,124.23,0.03]
[1741880173176,36.47381099,124.24,124.23,0.03]
[1741880173362,18.64964886,124.28,124.23,0.03]
[1741880173675,36.47381099,124.26,124.23,0.03]
[1741880173877,17.1245,124.31,124.23,0.03]
[1741880173878,56.47381099,124.27,124.23,0.03]
[1741880174181,36.47381099,124.26,124.23,0.03]
[1741880174767,36.47381099,124.24,124.23,0.03]
[1741880175079,36.47381099,124.25,124.23,0.03]
[1741880175667,36.47381099,124.24,124.23,0.03]
[1741880175863,36.47381099,124.25,124.23,0.03]
[1741880176063,36.47381099,124.24,124.23,0.03]
[1741880176689,20.0,124.28,124.23,36.50381099]
[1741880176863,44.51761099,124.32,124.24,36.47381099]
[1741880177063,36.47381099,124.29,124.24,36.47381099]
[1741880177282,36.47381099,124.27,124.23,0.03]
[1741880177665,36.47381099,124.28,124.23,44.55331099]
[1741880177864,36.47381099,124.27,124.23,8.0795]
[1741880178070,36.47381099,124.26,124.23,0.03]
[1741880178277,36.47381099,124.24,124.23,0.03]
[1741880179383,20.0,124.2,124.17,79.0]
[1741880179686,36.47381099,124.18,124.17,79.0]
[1741880179889,44.52661099,124.18,124.17,79.0]
[1741880180387,36.47381099,124.18,124.17,79.0]
[1741880180589,36.47381099,124.19,124.17,79.0]
[1741880180886,36.47381099,124.18,124.17,79.0]
[1741880181066,90.8495,124.23,124.17,79.0]
[1741880181267,9.28,124.24,124.17,79.0]
[1741880181268,8.0491,124.24,124.17,123.52721099]
[1741880181482,36.47381099,124.22,124.17,123.52721099]
[1741880181796,36.47381099,124.21,124.17,87.0534]
[1741880181984,36.47381099,124.21,124.18,0.28432314]
[1741880182292,54.71454986,124.24,124.19,64.05454986]
[1741880182884,8.0465,124.28,124.2,0.28432314]
[1741880183187,54.71454986,124.23,124.19,9.34]
[1741880183391,54.71454986,124.22,124.19,0.14216157]
[1741880183582,54.71454986,124.23,124.19,8.19386157]
[1741880184091,20.1158,124.28,124.21,0.14216157]
[1741880184092,8.0468,124.28,124.21,0.14216157]
[1741880184276,54.71454986,124.25,124.21,0.14216157]
[1741880184775,54.71454986,124.24,124.21,0.14216157]
[1741880184978,8.0468,124.28,124.2,0.14216157]
[1741880184979,54.71454986,124.23,124.2,0.28432314]
[1741880185180,54.71454986,124.26,124.2,54.998873]
[1741880185576,54.71454986,124.26,124.21,54.71454986]
[1741880185777,54.71454986,124.26,124.18,9.48216157]
[1741880185778,54.71454986,124.22,124.18,8.0524]
[1741880186296,54.71454986,124.22,124.17,79.03]
[1741880186692,54.71454986,124.22,124.17,141.79784986]
[1741880186885,54.71454986,124.24,124.19,0.28432314]
[1741880187087,54.71454986,124.26,124.21,54.71454986]
[1741880187279,54.71454986,124.25,124.19,0.28432314]
[1741880187483,54.71454986,124.22,124.17,133.74454986]
[1741880187684,8.0515,124.2,124.17,79.03]
[1741880187881,54.71454986,124.21,124.17,79.03]
[1741880188682,54.71454986,124.22,124.17,87.0834]
[1741880188885,28.169,124.25,124.19,54.71454986]
[1741880188886,8.0482,124.25,124.19,54.71454986]
[1741880189093,62.76274986,124.25,124.18,0.28432314]
[1741880189284,62.76274986,124.25,124.2,54.71454986]
[1741880189688,8.0456,124.29,124.22,62.76474986]
[1741880189886,54.71454986,124.25,124.21,0.28432314]
[1741880190196,54.71454986,124.22,124.17,79.03]
[1741880190379,54.71454986,124.2,124.17,79.03]
[1741880190578,54.71454986,124.19,124.17,79.03]
[1741880191176,54.71454986,124.18,124.17,79.03]
[1741880192634,8.0523,124.19,124.17,79.03]
[1741880192794,54.71454986,124.18,124.17,79.03]
[1741880193800,62.76734986,124.18,124.17,79.03]
[1741880194491,54.71454986,124.18,124.17,79.03]
[1741880195295,62.76734986,124.18,124.17,79.03]
[1741880196500,81.41699872,124.18,124.17,50.99042096]
[1741880196886,62.76734986,124.18,124.17,50.99042096]
[1741880197804,54.71454986,124.18,124.17,50.99042096]
[1741880197995,62.76734986,124.18,124.17,50.99042096]
[1741880198200,54.71454986,124.18,124.17,50.99042096]
[1741880198409,54.71454986,124.19,124.17,50.99042096]
[1741880198914,54.71454986,124.2,124.17,50.99042096]
[1741880199090,8.0509,124.21,124.17,50.99042096]
[1741880199292,54.71454986,124.2,124.17,50.99042096]
[1741880199503,54.71454986,124.19,124.17,50.99042096]
[1741880199810,8.0509,124.21,124.17,50.99042096]
[1741880200133,21.6885,124.23,124.17,50.99042096]
[1741880200134,54.71454986,124.18,124.17,50.99042096]
[1741880202105,62.76734986,124.18,124.17,50.99042096]
[1741880202415,44.58117355,124.18,124.17,50.99042096]
[1741880204295,8.0528,124.18,124.17,50.99042096]
[1741880204502,56.52837355,124.18,124.17,50.99042096]
[1741880205011,20.0,124.18,124.17,50.99042096]
[1741880205224,56.52837355,124.18,124.17,50.99042096]
[1741880205397,36.52837355,124.19,124.17,50.99042096]
[1741880205600,36.52837355,124.22,124.17,87.51879451]
[1741880205806,6.2075,124.25,124.17,59.04372096]
[1741880205807,36.52837355,124.21,124.17,59.04372096]
[1741880206008,44.58097355,124.19,124.17,50.99042096]
[1741880206201,36.52837355,124.18,124.17,50.99042096]
[1741880206720,56.52837355,124.19,124.17,50.99042096]
[1741880207520,36.52837355,124.18,124.17,50.99042096]
[1741880207727,56.52837355,124.19,124.17,50.99042096]
[1741880207918,36.52837355,124.2,124.17,50.99042096]
[1741880208115,36.52837355,124.21,124.17,59.04372096]
[1741880208306,36.52837355,124.22,124.17,59.04372096]
[1741880208896,36.52837355,124.22,124.17,95.57209451]
[1741880209299,0.063,124.23,124.18,43.02309669]
[1741880209507,36.59137355,124.23,124.18,43.02309669]
[1741880209799,0.063,124.23,124.19,36.52837355]
[1741880210114,0.063,124.23,124.2,8.0515]
[1741880210312,0.063,124.23,124.2,44.57987355]
[1741880210513,0.063,124.23,124.2,8.0515]
[1741880210819,36.52837355,124.22,124.17,95.57199451]
[1741880211024,36.52837355,124.22,124.17,59.04362096]
[1741880211201,0.063,124.23,124.17,59.04362096]
[1741880211202,0.063,124.23,124.19,36.52837355]
[1741880211794,0.063,124.23,124.21,36.52837355]
[1741880212011,0.063,124.23,124.2,36.52837355]
[1741880212206,0.063,124.23,124.19,44.72203512]
[1741880212412,0.063,124.23,124.19,8.19366157]
[1741880212413,36.59137355,124.23,124.19,8.19366157]
[1741880212607,0.063,124.23,124.19,44.72203512]
[1741880212818,0.063,124.23,124.2,36.67053512]
[1741880213018,0.063,124.23,124.19,44.72203512]
[1741880213224,0.063,124.23,124.19,8.19366157]
[1741880213602,36.59137355,124.23,124.19,8.19366157]
[1741880214315,36.52837355,124.21,124.17,50.99042096]
[1741880214720,36.52837355,124.19,124.17,50.99042096]
[1741880214923,36.52837355,124.18,124.17,50.99042096]
[1741880216830,44.58117355,124.18,124.17,50.99042096]
[1741880217328,36.52837355,124.18,124.17,50.99042096]
[1741880217831,44.58117355,124.18,124.17,50.99042096]
[1741880218615,53.80117355,124.18,124.17,50.99042096]
[1741880218931,45.74837355,124.18,124.17,50.99042096]
[1741880219132,36.52837355,124.18,124.17,50.99042096]
[1741880220045,44.58117355,124.18,124.17,50.99042096]
[1741880222124,20.0,124.15,124.12,0.03]
[1741880222331,36.52837355,124.13,124.12,0.03]
[1741880222685,0.063,124.19,124.12,0.03]
[1741880222817,36.52837355,124.16,124.12,0.03]
[1741880223018,36.52837355,124.15,124.12,0.03]
[1741880223224,36.52837355,124.16,124.12,0.03]
[1741880223417,8.0528,124.18,124.12,0.03]
[1741880223626,36.52837355,124.16,124.12,0.03]
[1741880224138,36.52837355,124.13,124.12,0.03]
[1741880224530,36.52837355,124.14,124.12,0.03]
[1741880225035,36.52837355,124.15,124.12,0.03]
[1741880225741,36.52837355,124.13,124.12,0.03]
[1741880226046,36.52837355,124.15,124.12,0.03]
[1741880226216,8.0536,124.17,124.12,0.03]
[1741880226217,36.52837355,124.14,124.12,0.03]
[1741880226724,44.58397355,124.14,124.12,0.03]
[1741880226919,36.52837355,124.13,124.12,0.03]
[1741880227432,38.17987355,124.13,124.12,0.03]
[1741880228842,36.52837355,124.13,124.12,0.03]
[1741880229045,44.58437355,124.13,124.12,0.03]
[1741880229222,36.52837355,124.13,124.12,0.03]
[1741880229428,36.52837355,124.14,124.12,0.03]
[1741880230427,36.52837355,124.15,124.12,0.03]
[1741880230629,36.52837355,124.16,124.12,0.03]
[1741880230919,36.52837355,124.18,124.12,36.84269669]
[1741880231347,36.52837355,124.17,124.12,0.03]
[1741880231652,36.52837355,124.16,124.12,0.03]
[1741880232154,8.1153,124.19,124.12,0.31432314]
[1741880232318,0.063,124.19,124.12,36.84269669]
[1741880232518,20.0,124.17,124.13,36.52837355]
[1741880232717,20.0,124.17,124.13,8.056]
[1741880233145,36.59137355,124.19,124.14,36.81269669]
[1741880233353,0.063,124.19,124.15,36.52837355]
[1741880233853,56.59137355,124.19,124.13,44.58437355]
[1741880234037,36.52837355,124.17,124.13,0.14216157]
[1741880234239,0.063,124.19,124.14,36.52837355]
[1741880234444,20.0,124.18,124.14,36.52837355]
[1741880234647,0.063,124.19,124.15,0.28432314]
[1741880234832,0.063,124.19,124.15,44.58307355]
[1741880235233,0.063,124.19,124.15,8.0547]
[1741880235433,36.59137355,124.19,124.14,8.19726157]
[1741880235740,0.063,124.19,124.15,36.81269669]
[1741880236459,0.063,124.19,124.16,36.52837355]
[1741880237354,36.52837355,124.18,124.14,8.0552]
[1741880237560,0.063,124.19,124.14,8.0552]
[1741880237728,36.59137355,124.19,124.14,44.58357355]
[1741880237924,36.59137355,124.19,124.14,8.0552]
[1741880238127,0.063,124.19,124.14,44.58357355]
[1741880238326,0.063,124.19,124.15,36.81269669]
[1741880238548,56.59137355,124.19,124.14,8.0552]
[1741880238935,0.063,124.19,124.15,36.81269669]
[1741880240130,36.52837355,124.16,124.12,8.0862]
[1741880240450,36.52837355,124.16,124.12,0.31432314]
[1741880241150,36.52837355,124.17,124.12,36.84269669]
[1741880241336,36.52837355,124.16,124.12,0.17216157]
[1741880241531,8.1154,124.19,124.13,36.81269669]
[1741880241836,36.52837355,124.18,124.13,36.67053512]
[1741880242250,36.52837355,124.18,124.13,0.28432314]
[1741880242456,36.52837355,124.17,124.13,0.28432314]
[1741880243956,36.52837355,124.18,124.13,44.86869669]
[1741880244456,0.063,124.19,124.14,36.52837355]
[1741880244659,0.063,124.19,124.15,36.81269669]
[1741880244835,0.063,124.19,124.15,0.28432314]
[1741880245185,36.59137355,124.19,124.15,0.28432314]
[1741880245330,0.063,124.19,124.15,0.28432314]
[1741880245529,20.063,124.19,124.15,36.81269669]
[1741880246541,0.063,124.19,124.17,0.28432314]
[1741880246759,0.063,124.19,124.17,45.93269669]
[1741880247354,0.063,124.19,124.18,36.81269669]
[1741880247860,0.063,124.19,124.18,38.02020527]
[1741880248031,0.063,124.19,124.18,62.80265413]
[1741880248232,0.063,124.19,124.18,42.94549669]
[1741880248669,0.063,124.19,124.18,50.99829669]
[1741880249646,0.063,124.19,124.18,14.46992314]
[1741880250050,0.063,124.19,124.18,50.99829669]
[1741880250271,0.063,124.19,124.18,14.46992314]
[1741880250449,0.063,124.19,124.18,50.99829669]
[1741880250647,0.063,124.19,124.18,14.46992314]
[1741880251149,0.063,124.19,124.18,50.99829669]
[1741880253070,0.063,124.19,124.18,14.46992314]
[1741880253264,0.063,124.19,124.17,0.14216157]
[1741880253448,36.59137355,124.19,124.16,0.14216157]
[1741880253647,36.59137355,124.19,124.13,18.79181043]
[1741880253648,36.52837355,124.18,124.15,0.14216157]
[1741880254075,20.063,124.19,124.15,0.28432314]
[1741880254371,36.59137355,124.19,124.15,0.28432314]
[1741880254769,0.063,124.19,124.15,0.28432314]
[1741880254972,36.59137355,124.19,124.15,8.33852314]
[1741880255655,36.52837355,124.18,124.15,8.33852314]
[1741880255850,0.063,124.19,124.15,8.33852314]
[1741880256084,36.59137355,124.19,124.15,8.33852314]
[1741880256255,36.52837355,124.18,124.15,0.28432314]
[1741880256779,0.063,124.19,124.15,0.28432314]
[1741880256966,36.59137355,124.19,124.15,0.28432314]
[1741880257279,0.063,124.19,124.15,0.28432314]
[1741880257492,36.59137355,124.19,124.15,0.28432314]
[1741880257782,36.52837355,124.18,124.15,0.28432314]
[1741880257951,36.52837355,124.18,124.14,0.03]
[1741880258153,44.58207355,124.17,124.14,0.03]
[1741880258353,36.52837355,124.16,124.14,0.03]
[1741880259181,44.58207355,124.17,124.14,0.03]
[1741880259386,36.52837355,124.16,124.14,0.03]
[1741880259564,20.0,124.17,124.14,0.03]
[1741880259957,56.52837355,124.17,124.14,0.03]
[1741880260155,20.0,124.17,124.14,0.03]
[1741880260450,56.52837355,124.17,124.14,0.03]
[1741880260651,20.0,124.17,124.14,0.03]
[1741880260957,36.52837355,124.16,124.14,0.03]
[1741880261278,56.52837355,124.17,124.14,0.03]
[1741880261481,36.52837355,124.16,124.14,0.03]
[1741880261654,56.52837355,124.17,124.14,0.03]
[1741880263156,20.063,124.19,124.14,36.70053512]
[1741880263376,36.59137355,124.19,124.15,0.14216157]
[1741880263581,0.063,124.19,124.15,36.52837355]
[1741880264565,0.063,124.19,124.16,8.0541]
[1741880265478,0.063,124.19,124.17,0.28432314]
[1741880265860,0.063,124.19,124.17,36.81269669]
[1741880266259,0.063,124.19,124.17,23.09136582]
[1741880266577,0.063,124.19,124.18,31.14416582]
[1741880267181,0.063,124.19,124.18,37.40756582]
[1741880268380,0.063,124.19,124.18,51.07589677]
[1741880272765,0.063,124.23,124.19,0.28432314]
[1741880273067,0.063,124.23,124.2,36.47537363]
[1741880273279,0.063,124.23,124.21,0.28432314]
[1741880274165,0.063,124.23,124.21,36.47537363]
[1741880274561,0.063,124.23,124.22,8.0502]
[1741880276386,0.063,124.23,124.21,8.19296157]
[1741880276588,0.063,124.23,124.21,44.6683352]
[1741880276783,0.063,124.23,124.22,36.75969677]
[1741880278392,0.063,124.23,124.21,36.6175352]
[1741880278572,0.063,124.23,124.21,44.6681352]
[1741880280195,0.063,124.23,124.2,8.96]
[1741880280497,0.063,124.23,124.21,36.47537363]
[1741880280664,0.063,124.23,124.2,53.48667363]
[1741880280868,0.063,124.23,124.2,8.96]
[1741880281275,0.063,124.23,124.2,45.43537363]
[1741880281572,36.47537363,124.21,124.17,0.03]
[1741880281885,36.47537363,124.18,124.17,0.03]
[1741880282483,36.47537363,124.19,124.17,0.03]
[1741880282724,36.47537363,124.2,124.17,0.03]
[1741880283177,36.47537363,124.19,124.17,0.03]
[1741880283582,36.47537363,124.2,124.17,0.03]
[1741880283769,9.6989,124.21,124.17,0.03]
[1741880283970,36.47537363,124.2,124.17,0.03]
[1741880284783,36.47537363,124.18,124.17,0.03]
[1741880285896,44.52817363,124.18,124.17,0.03]
[1741880286390,20.0,124.16,124.15,0.03]
[1741880286582,58.13527363,124.16,124.15,0.03]
[1741880287682,14.1842,124.18,124.15,0.03]
[1741880287683,42.60677363,124.18,124.15,0.03]
[1741880288177,36.47537363,124.17,124.15,0.03]
[1741880288374,36.47537363,124.16,124.15,0.03]
[1741880289479,75.12502249,124.15,124.14,0.03]
[1741880289702,92.95074726,124.15,124.14,0.03]
[1741880289979,121.15809612,124.15,124.14,0.03]
[1741880290178,102.50844726,124.15,124.14,0.03]
[1741880290398,58.84336025,124.15,124.14,0.03]
[1741880290798,52.4025354,124.15,124.14,0.03]
[1741880291173,58.73548935,124.15,124.14,0.03]
[1741880291582,81.3931294,124.15,124.14,0.03]
[1741880291773,124.3748648,124.15,124.12,0.03]
[1741880291990,22.8448354,124.13,124.12,0.03]
[1741880292195,48.09408426,124.13,124.12,0.03]
[1741880292883,29.4444354,124.13,124.12,0.03]
[1741880293887,20.0,124.13,124.12,0.03]
[1741880294097,42.8448354,124.13,124.12,0.03]
[1741880296490,22.8448354,124.14,124.12,0.03]
[1741880296694,20.0,124.14,124.12,0.03]
[1741880296998,30.8990354,124.16,124.12,0.03]
[1741880297201,22.8448354,124.15,124.12,0.03]
[1741880297675,22.8448354,124.16,124.12,0.03]
[1741880297882,22.8448354,124.17,124.12,22.8748354]
[1741880298606,8.1147,124.2,124.14,22.8448354]
[1741880298782,22.8448354,124.19,124.14,22.8448354]
[1741880299178,30.8976354,124.18,124.13,31.04279697]
[1741880299403,22.8448354,124.19,124.13,8.19796157]
[1741880299705,22.9078354,124.2,124.15,22.8448354]
[1741880300179,30.9595354,124.2,124.15,22.8448354]
[1741880300383,30.9595354,124.2,124.14,22.98699697]
[1741880300592,22.8448354,124.19,124.14,22.8448354]
[1741880300899,22.8448354,124.18,124.13,31.04279697]
[1741880301402,42.8448354,124.19,124.14,22.8448354]
[1741880301709,22.8448354,124.18,124.13,31.04279697]
[1741880302295,42.8448354,124.19,124.14,0.14216157]
[1741880302684,42.8448354,124.19,124.14,22.98699697]
[1741880302885,42.8448354,124.19,124.14,0.14216157]
[1741880303106,42.9078354,124.19,124.14,0.14216157]
[1741880303307,22.8448354,124.18,124.14,0.14216157]
[1741880303484,22.8448354,124.18,124.14,8.19706157]
[1741880303805,42.9078354,124.19,124.14,8.19706157]
[1741880304010,50.9599354,124.19,124.14,8.19706157]
[1741880304199,28.1151,124.19,124.14,8.19706157]
[1741880304501,20.063,124.19,124.14,31.04189697]
[1741880304701,20.063,124.19,124.15,0.14216157]
[1741880304900,42.9078354,124.19,124.15,0.14216157]
[1741880305490,42.9078354,124.19,124.15,8.19636157]
[1741880305904,22.9078354,124.19,124.15,8.19636157]
[1741880306586,0.063,124.19,124.15,8.19636157]
[1741880307598,0.063,124.19,124.15,31.04119697]
[1741880308399,0.063,124.19,124.15,51.17809697]
[1741880309295,0.063,124.19,124.15,28.33326157]
[1741880309513,0.063,124.19,124.15,51.17809697]
[1741880309914,0.063,124.19,124.15,28.33326157]
[1741880310220,0.063,124.19,124.14,8.0551]
[1741880310509,22.8448354,124.18,124.14,8.0551]
[1741880311188,22.8448354,124.18,124.14,0.28432314]
[1741880311393,22.8448354,124.16,124.13,0.14216157]
[1741880311612,22.8448354,124.17,124.13,8.19806157]
[1741880311801,8.0532,124.18,124.13,8.19806157]
[1741880312000,22.8448354,124.17,124.13,0.14216157]
[1741880312197,22.8448354,124.16,124.12,0.31432314]
[1741880312401,22.8448354,124.15,124.12,0.31432314]
[1741880312908,9.677,124.18,124.12,8.37082314]
[1741880312909,8.0532,124.18,124.12,8.37082314]
[1741880313112,22.8448354,124.17,124.12,31.21565854]
[1741880313489,30.8983354,124.17,124.12,31.21565854]
[1741880313694,30.8983354,124.17,124.12,8.37082314]
[1741880313889,22.8448354,124.16,124.12,8.37082314]
[1741880314098,30.8983354,124.17,124.12,8.37082314]
[1741880314415,30.8983354,124.17,124.12,31.21565854]
[1741880314599,30.8983354,124.17,124.12,8.37082314]
[1741880314928,22.9078354,124.16,124.12,0.31432314]
[1741880315095,0.063,124.16,124.12,0.31432314]
[1741880315304,0.063,124.16,124.12,8.37082314]
[1741880315700,0.063,124.16,124.12,31.21565854]
[1741880316832,0.063,124.16,124.13,22.8448354]
[1741880316996,0.063,124.16,124.13,0.14216157]
[1741880317203,22.9078354,124.16,124.12,0.17216157]
[1741880317401,22.9078354,124.16,124.12,0.31432314]
[1741880317631,0.063,124.16,124.12,31.21575854]
[1741880318015,0.063,124.16,124.12,8.37092314]
[1741880318420,20.063,124.16,124.12,31.21575854]
[1741880318736,50.9620354,124.16,124.12,0.03]
[1741880318909,22.8448354,124.14,124.12,0.03]
[1741880319610,22.8448354,124.15,124.12,0.03]
[1741880319811,28.1172,124.16,124.12,0.03]
[1741880320006,20.063,124.16,124.12,0.03]
[1741880320210,20.063,124.16,124.12,30.9313354]
[1741880320522,0.063,124.16,124.13,23.12915854]
[1741880320714,0.063,124.16,124.14,8.0554]
[1741880321020,0.063,124.16,124.13,39.94495854]
[1741880322334,0.063,124.16,124.15,0.28432314]
[1741880322708,0.063,124.16,124.15,31.18385854]
[1741880322917,0.063,124.16,124.15,37.66905854]
[1741880323507,0.063,124.16,124.15,14.82422314]
[1741880323835,0.063,124.16,124.15,37.66905854]
[1741880324320,0.063,124.16,124.15,56.3187074]
[1741880325831,0.063,124.16,124.15,368.3187074]
[1741880326222,0.063,124.19,124.16,0.28432314]
[1741880326419,0.063,124.19,124.18,23.12915854]
[1741880326725,0.063,124.19,124.18,50.4788074]
[1741880327428,0.063,124.19,124.18,52.0948074]
[1741880327603,0.063,124.19,124.18,188.9948074]